bitfinex/quotes_ETHUSD_20250130
["timestamp","ask_amount","ask_price","bid_price","bid_amount"]
[1738249994435,0.231,3269.8,3269.1,1.0]
[1738249994642,3.05844,3269.7,3269.1,1.0]
[1738249995040,3.0584,3269.7,3269.1,1.0]
[1738249995373,0.231,3269.8,3269.2,0.55]
[1738249995374,3.231,3269.8,3269.2,0.55]
[1738249995675,3.0075,3269.5,3269.1,1.0]
[1738249995844,3.0,3269.3,3269.1,1.0]
[1738249996026,6.05881,3269.3,3269.1,1.0]
[1738249996529,6.88375,3269.2,3269.1,1.0]
[1738249998266,6.89125,3269.2,3269.1,1.0]
[1738249998429,7.909356,3269.2,3269.1,1.0]
[1738249998785,0.015,3268.8,3267.5,3.06041]
[1738249998931,0.0075,3268.8,3267.5,3.06041]
[1738249999140,0.0075,3268.8,3267.7,3.06018]
[1738249999452,3.0,3268.3,3267.5,3.06041]
[1738249999758,0.7882,3268.9,3267.6,3.3406596]
[1738249999759,3.0,3268.4,3267.6,3.3406596]
[1738250000082,0.231,3268.5,3268.0,3.05994]
[1738250000229,0.560033,3268.5,3268.0,3.05994]
[1738250000426,0.231,3268.8,3268.0,3.05994]
[1738250000655,0.231,3268.8,3267.9,0.55]
[1738250000853,3.29031,3268.8,3267.9,3.61006]
[1738250001029,3.0,3268.7,3267.9,3.61006]
[1738250001230,3.05934,3268.7,3267.9,3.61006]
[1738250001445,0.60471754,3268.6,3268.0,0.8303996]
[1738250001640,3.66416754,3268.6,3268.0,0.8303996]
[1738250002077,0.60471754,3268.6,3268.0,0.8303996]
[1738250002258,0.60471754,3268.6,3268.1,0.22446477]
[1738250002664,0.231,3268.8,3268.1,0.22446477]
[1738250002863,0.231,3268.8,3268.2,0.55]
[1738250003069,0.7807,3268.9,3268.2,3.8901196]
[1738250003292,0.231,3269.1,3268.5,0.55]
[1738250003676,1.0549,3269.2,3268.4,3.60957]
[1738250003877,0.7946,3269.7,3268.9,3.05911]
[1738250004096,0.7946,3269.7,3269.0,0.55]
[1738250004266,0.015,3269.6,3268.2,0.2803996]
[1738250004471,0.015,3269.2,3268.2,0.2803996]
[1738250004655,0.015,3269.2,3268.8,0.2803996]
[1738250004856,0.0075,3269.0,3268.8,0.2803996]
[1738250005099,0.015,3269.0,3268.8,0.2803996]
[1738250005482,0.7871,3268.9,3268.8,0.2803996]
[1738250006179,0.0075,3268.8,3268.5,0.2803996]
[1738250006904,6.06691,3268.6,3268.5,0.2803996]
[1738250007198,6.979541,3268.6,3268.5,0.2803996]
[1738250007755,3.0,3268.8,3268.5,0.2803996]
[1738250007961,4.06979,3268.9,3268.5,0.2803996]
[1738250008160,3.0075,3268.8,3268.5,0.2803996]
[1738250008356,0.7972,3270.1,3268.5,0.2803996]
[1738250008615,0.231,3270.0,3268.6,0.55]
[1738250008805,0.015,3269.6,3268.6,0.55]
[1738250009158,0.0075,3269.6,3268.6,3.60938]
[1738250009397,0.7972,3269.9,3268.6,0.55]
[1738250009693,0.015,3269.7,3268.6,0.55]
[1738250009921,0.015,3269.7,3268.8,0.55]
[1738250010665,0.015,3269.3,3268.7,0.50646155]
[1738250010884,0.015,3269.1,3268.7,0.50646155]
[1738250011625,0.015,3269.1,3268.8,0.2803996]
[1738250012420,0.015,3269.1,3268.8,0.50646155]
[1738250012918,0.44750026,3269.5,3268.8,0.50646155]
[1738250012919,0.8396,3268.9,3268.8,1.55e-06]
[1738250013122,1.1396,3268.8,3266.9,0.7713]
[1738250013334,0.015,3268.1,3266.2,0.7713]
[1738250013624,0.3,3268.3,3265.0,3.06271]
[1738250013625,0.758,3267.8,3265.7,3.06211]
[1738250013781,0.758,3267.8,3266.0,3.06182]
[1738250013982,3.82659,3266.8,3266.0,0.55]
[1738250014317,6.82659,3266.8,3266.1,0.67115656]
[1738250014518,7.216749,3266.8,3266.7,9.6e-06]
[1738250014669,6.86816,3266.2,3266.1,0.67115656]
[1738250014872,7.09916,3266.2,3266.1,0.67115656]
[1738250015101,6.86066,3266.2,3266.1,0.67115656]
[1738250015313,3.0,3266.2,3266.1,0.67115656]
[1738250015672,0.231,3266.5,3266.1,0.67115656]
[1738250015910,3.443759,3266.8,3266.0,0.55]
[1738250016094,0.8165,3266.9,3266.2,0.55]
[1738250016295,3.06075,3267.2,3266.2,0.55]
[1738250016479,3.87719,3267.3,3266.7,0.55]
[1738250016682,3.0609,3267.1,3266.2,3.06164]
[1738250017012,3.06092,3267.0,3266.3,0.55]
[1738250017196,3.06101,3266.9,3266.1,0.7852]
[1738250017402,3.06083,3267.1,3266.4,0.55]
[1738250017602,3.06083,3267.1,3266.2,0.55]
[1738250018065,3.0075,3267.2,3266.6,0.55]
[1738250018271,4.62022797,3267.7,3267.0,3.0609]
[1738250018466,1.55990797,3267.7,3267.1,0.55]
[1738250018720,3.0607,3267.3,3266.5,0.7887]
[1738250018885,3.06074,3267.2,3266.5,0.7887]
[1738250019087,6.06807,3267.4,3266.6,0.55]
[1738250019281,4.62015797,3267.7,3266.9,3.06095]
[1738250019513,1.55990797,3267.7,3267.0,0.55]
[1738250019718,2.10397177,3267.7,3266.7,3.06116]
[1738250019889,2.10397177,3267.7,3266.5,3.85006]
[1738250019890,3.06062,3267.4,3266.5,3.85006]
[1738250020093,3.0,3267.4,3266.5,3.85006]
[1738250020273,3.0607,3267.3,3266.6,0.55]
[1738250020473,4.55990797,3267.7,3266.1,0.7665]
[1738250020474,0.0075,3267.2,3266.1,0.7665]
[1738250020719,3.0685,3267.0,3266.2,3.06164]
[1738250021017,3.06065,3267.3,3266.3,3.61153]
[1738250021185,3.0,3267.2,3266.4,0.03061594]
[1738250021386,3.0,3267.2,3266.4,0.55]
[1738250021714,0.231,3267.5,3266.9,1.3129]
[1738250022722,3.29145,3267.5,3266.9,1.3129]
[1738250022880,3.06054,3267.4,3266.9,0.55]
[1738250023072,3.0608,3267.2,3266.4,0.7717]
[1738250023272,3.0608,3267.2,3266.5,0.55]
[1738250023732,3.0075,3267.4,3266.7,0.55]
[1738250023877,4.62022797,3267.7,3266.7,0.55]
[1738250024082,1.79090797,3267.7,3267.1,0.55]
[1738250024321,6.06039,3267.6,3266.9,0.55]
[1738250024476,0.0075,3267.5,3266.9,0.55]
[1738250024676,3.06803,3267.5,3266.9,0.55]
[1738250024906,3.06056,3267.4,3266.9,0.55]
[1738250025124,3.06803,3267.5,3266.5,0.55]
[1738250025279,0.0075,3267.5,3266.8,0.55]
[1738250025477,0.85008628,3267.5,3266.8,0.55]
[1738250025707,0.85008628,3267.5,3266.4,0.7717]
[1738250025708,3.91061628,3267.5,3266.5,0.55]
[1738250025906,3.0607,3267.3,3266.5,0.55]
[1738250026109,3.91061628,3267.5,3266.9,0.22650143]
[1738250026321,5.18736277,3267.7,3266.9,0.22650143]
[1738250026582,1.55990797,3267.7,3267.3,0.55]
[1738250026910,1.55990797,3267.7,3267.6,3.61035]
[1738250028916,1.55990797,3267.7,3267.6,3.83685143]
[1738250029919,1.55990797,3267.7,3267.6,4.44929765]
[1738250030257,1.55990797,3267.7,3267.6,4.22279622]
[1738250030956,1.55990797,3267.7,3267.6,1.16244622]
[1738250031455,1.55990797,3267.7,3267.6,3.06035]
[1738250032130,1.55990797,3267.7,3267.6,3.61035]
[1738250032575,1.55990797,3267.7,3267.6,0.55]
[1738250034183,1.55990797,3267.7,3267.2,1.39660979]
[1738250034386,1.55990797,3267.7,3267.3,3.06061]
[1738250034971,1.55990797,3267.7,3267.4,0.55]
[1738250035190,1.55990797,3267.7,3267.6,0.55]
[1738250035485,1.55990797,3267.7,3267.6,3.61035]
[1738250035704,0.7841,3269.2,3268.9,0.55]
[1738250035983,3.05864,3269.5,3268.9,0.55]
[1738250035984,0.7841,3269.5,3268.9,0.55]
[1738250036769,3.84274,3269.5,3268.9,0.55]
[1738250037238,0.8019,3269.8,3269.1,0.55]
[1738250037439,1.27186513,3269.8,3269.3,0.55]
[1738250037639,3.05846,3269.7,3269.3,0.55]
[1738250037844,3.05846,3269.7,3268.9,3.05912]
[1738250038176,3.0,3269.6,3269.0,0.55]
[1738250038384,3.0,3269.6,3269.0,3.60897]
[1738250038539,3.0,3269.6,3269.0,0.55]
[1738250038735,6.86024,3269.8,3269.2,0.55]
[1738250039064,0.686024,3269.7,3269.2,0.55]
[1738250039437,0.686024,3269.7,3268.6,0.8162]
[1738250039438,0.686024,3269.7,3268.8,0.55]
[1738250039878,6.11701,3269.6,3268.8,0.55]
[1738250040079,3.05847,3269.6,3268.8,0.55]
[1738250040282,3.8019,3269.8,3268.9,0.55]
[1738250040485,0.8019,3269.8,3268.9,0.55]
[1738250040670,0.231,3270.0,3269.3,0.55]
[1738250040875,0.328904,3269.9,3269.5,0.55]
[1738250041063,3.05805,3270.1,3269.5,0.55]
[1738250041390,3.05839,3269.7,3269.1,0.7988]
[1738250041683,3.231,3270.1,3269.5,0.55]
[1738250042089,3.0,3270.2,3269.7,0.55]
[1738250042386,0.8182,3270.5,3270.0,0.55]
[1738250042557,0.791,3270.8,3270.2,0.55]
[1738250042902,3.848,3271.2,3270.6,0.55]
[1738250043247,3.0,3271.1,3270.6,0.55]
[1738250043450,0.0075,3271.3,3270.6,3.60753]
[1738250043648,0.306436,3271.2,3270.7,0.8158]
[1738250043885,3.84975,3271.5,3270.8,3.60734]
[1738250044089,1.43916175,3271.9,3271.0,0.55]
[1738250044493,0.015,3271.8,3270.8,0.55]
[1738250044676,0.0075,3271.6,3270.3,0.8074]
[1738250044989,0.015,3271.5,3270.1,3.60795]
[1738250045190,0.015,3271.5,3270.1,0.55]
[1738250045484,0.0075,3271.5,3270.6,0.55]
[1738250045690,0.2385,3271.5,3270.6,0.55]
[1738250045892,0.231,3271.5,3270.6,3.60747]
[1738250046099,0.231,3271.5,3270.9,0.55]
[1738250046654,0.231,3271.5,3270.9,3.60723]
[1738250046854,0.938857,3271.5,3270.9,3.60723]
[1738250047180,3.05646,3271.8,3271.2,0.55]
[1738250047381,0.60756175,3271.9,3271.3,3.05687]
[1738250047559,3.86319,3272.0,3271.3,3.05687]
[1738250047898,3.05632,3271.9,3271.3,3.05687]
[1738250048101,3.05632,3271.9,3271.2,0.55]
[1738250048304,0.386322,3271.8,3271.2,3.60696]
[1738250048457,0.386322,3271.8,3271.3,3.05686]
[1738250048659,0.8069,3272.0,3271.3,3.05686]
[1738250049102,1.39697976,3272.3,3271.2,0.55]
[1738250049290,3.0557,3272.6,3272.0,0.55]
[1738250049602,3.05584,3272.5,3271.8,3.0564]
[1738250049799,0.0075,3272.6,3271.8,3.0564]
[1738250049955,3.05587,3272.4,3271.9,0.55]
[1738250050162,0.329413,3272.5,3271.6,0.55]
[1738250050499,0.329413,3272.5,3272.1,0.55]
[1738250050655,0.7905,3273.0,3272.1,3.60613]
[1738250051056,3.84586,3273.0,3272.1,3.60613]
[1738250051328,3.28616,3273.2,3272.5,3.0557]
[1738250051499,3.28616,3273.2,3272.4,3.60581]
[1738250051899,3.05518,3273.2,3272.5,0.55]
[1738250052097,3.660738,3273.1,3272.5,0.55]
[1738250052303,3.05538,3273.0,3272.4,3.60583]
[1738250052493,3.660748,3273.1,3272.5,3.05573]
[1738250052695,3.660748,3273.1,3272.0,0.7884]
[1738250052696,0.605518,3273.1,3272.0,3.84456]
[1738250052900,3.05538,3273.0,3272.0,3.84456]
[1738250053198,3.05545,3272.9,3272.3,0.55]
[1738250053508,3.05538,3273.0,3272.1,0.55]
[1738250053709,3.05557,3272.8,3272.1,3.60606]
[1738250053910,3.05536,3273.0,3272.3,0.55]
[1738250054112,0.305536,3272.9,3272.3,3.60592]
[1738250054295,0.305536,3272.9,3272.0,0.7884]
[1738250054296,3.05557,3272.8,3272.1,0.55]
[1738250054472,3.05557,3272.8,3272.1,3.60607]
[1738250055175,3.360936,3272.9,3272.3,0.55]
[1738250055377,3.05549,3272.8,3272.3,0.55]
[1738250055572,3.05571,3272.6,3272.0,0.7884]
[1738250055812,3.05593,3272.4,3271.6,3.856]
[1738250056313,3.05588,3272.4,3271.6,0.7994]
[1738250056525,0.0075,3272.5,3271.7,0.55]
[1738250056679,3.05649,3271.8,3271.2,0.7811]
[1738250056877,0.305649,3271.7,3271.3,3.05688]
[1738250057075,3.05633,3271.9,3271.2,0.7811]
[1738250057392,3.05678,3271.5,3270.9,3.05723]
[1738250057594,3.05619,3272.1,3271.1,3.05701]
[1738250057595,3.05645,3271.8,3271.1,3.05701]
[1738250057792,0.305645,3271.7,3271.6,0.55]
[1738250057993,3.05621,3272.1,3271.6,0.55]
[1738250058475,3.05634,3271.9,3271.6,0.55]
[1738250058673,3.05621,3272.1,3271.5,0.55]
[1738250058882,1.1498026,3272.8,3271.5,1.3005]
[1738250059091,0.8137,3273.5,3272.7,3.0555]
[1738250059327,3.05458,3273.8,3273.3,0.55]
[1738250059526,0.8137,3274.0,3273.5,0.55]
[1738250059827,0.8137,3274.0,3273.4,3.05487]
[1738250059828,3.05442,3274.0,3273.4,0.55]
[1738250060029,0.305442,3273.9,3273.6,0.55]
[1738250060234,2.423,3274.2,3273.6,0.55]
[1738250060442,3.05427,3274.1,3273.6,0.55]
[1738250060927,3.05427,3274.1,3273.5,3.05483]
[1738250060928,3.05439,3274.0,3273.4,0.55]
[1738250061084,3.05463,3273.8,3273.4,0.55]
[1738250061287,3.05469,3273.7,3273.1,3.05519]
[1738250061486,0.305469,3273.6,3273.2,0.55]
[1738250061932,0.305469,3273.6,3273.1,3.05513]
[1738250062236,3.05491,3273.5,3273.0,0.55]
[1738250062386,3.05498,3273.4,3272.7,3.05555]
[1738250062593,0.8047,3273.5,3272.8,3.05541]
[1738250062799,0.4164939,3273.4,3272.9,0.55]
[1738250063155,3.05511,3273.2,3272.3,4.45604661]
[1738250063315,3.05539,3273.0,3272.3,1.40013661]
[1738250063644,3.05548,3272.9,3272.4,0.55]
[1738250063856,3.05565,3272.7,3272.4,0.55]
[1738250064047,0.305565,3272.7,3272.4,0.55]
[1738250064728,3.05522,3273.1,3272.6,0.55]
[1738250065039,3.05531,3273.0,3272.6,0.55]
[1738250065514,3.05547,3272.9,3272.4,0.55]
[1738250065715,3.05539,3272.9,3271.8,0.8244]
[1738250066049,3.056,3272.3,3271.8,0.8244]
[1738250066342,0.3056,3272.2,3271.8,0.8244]
[1738250066551,0.3056,3272.2,3271.9,0.55]
[1738250066843,3.05577,3272.5,3271.9,0.55]
[1738250067197,0.2385,3272.9,3271.9,0.55]
[1738250067399,3.05577,3272.5,3271.9,3.60632]
[1738250067611,3.05595,3272.3,3271.5,0.7733]
[1738250067812,3.05614,3272.1,3271.5,3.82993]
[1738250068154,0.231,3272.9,3271.5,3.82993]
[1738250068155,6.05568,3272.6,3272.0,3.05616]
[1738250068352,0.231,3272.9,3271.5,0.7733]
[1738250068353,3.0554,3272.9,3272.2,0.55]
[1738250068509,0.0075,3273.2,3272.4,0.55]
[1738250068510,3.05549,3272.8,3272.4,0.55]
[1738250068850,3.05566,3272.7,3271.9,3.05631]
[1738250069001,3.361306,3272.6,3271.8,3.05639]
[1738250069201,0.305566,3272.6,3272.1,0.55]
[1738250069402,3.05583,3272.5,3271.9,3.05625]
[1738250069609,0.305566,3272.6,3272.1,0.55]
[1738250069835,0.305566,3272.6,3272.1,3.60612]
[1738250070249,0.305566,3272.6,3272.1,3.60607]
[1738250070402,3.05528,3273.1,3272.5,0.55]
[1738250070604,3.05528,3273.1,3272.5,3.60575]
[1738250070805,3.85743,3273.3,3272.6,3.05563]
[1738250071066,0.4164939,3273.4,3272.6,0.03055527]
[1738250071207,3.05465,3273.7,3273.2,0.55]
[1738250071401,3.05448,3273.9,3273.2,0.55]
[1738250071607,0.305448,3273.8,3273.2,3.60503]
[1738250071819,3.359998,3273.8,3273.2,3.60503]
[1738250072155,3.05471,3273.7,3273.2,0.55]
[1738250072353,3.05498,3273.4,3272.7,3.83493]
[1738250072559,3.05498,3273.4,3272.8,3.60547]
[1738250072763,3.05474,3273.6,3272.9,3.05534]
[1738250073048,3.05484,3273.5,3272.9,3.05534]
[1738250073210,3.05474,3273.6,3272.9,3.05531]
[1738250073405,0.305474,3273.5,3272.9,3.05531]
[1738250073755,3.360314,3273.5,3273.1,0.55]
[1738250073980,3.05474,3273.6,3273.1,0.55]
[1738250074363,3.05455,3273.8,3273.1,3.6052]
[1738250074566,3.05443,3274.0,3273.3,3.055]
[1738250074748,3.05448,3273.9,3273.4,0.55]
[1738250075465,3.05462,3273.8,3273.2,0.55]
[1738250075626,3.360082,3273.8,3273.2,0.55]
[1738250075831,3.05467,3273.7,3273.2,0.55]
[1738250076059,3.360082,3273.8,3272.7,0.7794]
[1738250076060,3.05495,3273.4,3273.0,0.55]
[1738250076282,0.305462,3273.8,3273.0,0.55]
[1738250076437,3.05492,3273.5,3272.8,0.55]
[1738250077283,3.05493,3273.4,3272.8,0.55]
[1738250077579,3.05523,3273.1,3272.8,0.55]
[1738250077808,3.05523,3273.1,3272.5,3.05574]
[1738250077956,3.05506,3273.3,3272.6,3.05566]
[1738250078161,3.437046,3273.2,3272.6,3.05566]
[1738250078687,0.381936,3273.2,3272.6,3.05566]
[1738250078901,0.381936,3273.2,3272.7,0.55]
[1738250079090,0.381936,3273.2,3272.4,4.4921272]
[1738250079091,3.05541,3272.9,3272.1,3.05609]
[1738250079411,3.05594,3272.4,3272.0,0.782]
[1738250079958,3.361534,3272.4,3271.6,0.782]
[1738250080203,0.305594,3272.4,3271.9,3.05625]
[1738250080371,3.84584,3272.6,3271.9,3.05629]
[1738250080710,3.84584,3272.6,3271.7,3.08703358]
[1738250080711,3.05596,3272.3,3271.8,0.55]
[1738250080861,0.7901,3272.6,3271.8,0.55]
[1738250081060,3.05594,3272.4,3271.8,3.60636]
[1738250081587,3.05594,3272.4,3271.8,0.55]
[1738250081786,3.746114,3272.4,3271.8,3.60641]
[1738250082202,3.746114,3272.4,3271.8,0.55]
[1738250082378,3.05602,3272.3,3271.8,0.55]
[1738250082558,3.746114,3272.4,3271.8,3.60637]
[1738250082762,0.690174,3272.4,3272.0,0.55]
[1738250082959,3.746094,3272.4,3272.0,0.55]
[1738250083188,3.746094,3272.4,3271.8,3.60641]
[1738250083397,3.05592,3272.4,3271.8,0.55]
[1738250083692,3.05579,3272.5,3272.0,0.55]
[1738250083857,3.84579,3272.6,3272.0,0.55]
[1738250084078,3.05596,3272.3,3271.8,0.55]
[1738250084497,3.84581,3272.6,3271.8,0.55]
[1738250084696,3.05591,3272.4,3271.8,3.60641]
[1738250085703,3.05591,3272.4,3271.9,0.55]
[1738250086602,3.05591,3272.4,3271.7,0.55]
[1738250086919,3.05611,3272.2,3271.7,0.55]
[1738250087319,3.05586,3272.4,3271.7,3.60649]
[1738250087625,3.7867941,3272.4,3271.9,0.55]
[1738250087914,3.7867941,3272.4,3271.9,3.6063]
[1738250088122,3.05586,3272.4,3271.9,3.6063]
[1738250088429,3.86336,3273.0,3272.4,0.55]
[1738250088715,3.0,3272.7,3272.4,0.55]
[1738250089215,3.05536,3273.0,3272.4,3.60579]
[1738250089383,0.7764,3273.3,3272.6,0.55]
[1738250089591,4.520126,3273.3,3272.8,0.55]
[1738250089906,3.05531,3273.0,3272.6,0.55]
[1738250090232,3.05512,3273.2,3272.6,0.55]
[1738250090389,3.05521,3273.1,3272.6,0.55]
[1738250090919,3.05532,3273.0,3272.4,3.6058]
[1738250091414,7.520086,3273.3,3272.3,3.86269]
[1738250091415,3.05512,3273.2,3272.6,3.60561]
[1738250091627,6.05505,3273.3,3272.6,0.55]
[1738250091774,3.05527,3273.1,3272.6,0.55]
[1738250092118,0.605505,3273.2,3272.3,0.8068]
[1738250092119,3.05536,3273.0,3272.4,0.55]
[1738250092424,3.660685,3273.2,3272.7,0.55]
[1738250093086,0.605505,3273.2,3272.5,0.55]
[1738250093419,3.05523,3273.1,3272.5,0.55]
[1738250093919,3.40384438,3273.1,3272.5,3.60576]
[1738250094988,0.34861438,3273.1,3272.7,0.55]
[1738250095189,3.40388438,3273.1,3272.7,0.55]
[1738250095490,3.40388438,3273.1,3272.5,3.60575]
[1738250095688,0.605505,3273.2,3272.3,3.86271]
[1738250095689,3.05486,3273.5,3272.9,3.05537]
[1738250095888,3.05466,3273.7,3273.2,0.55]
[1738250096086,3.28547,3273.9,3273.2,3.6051]
[1738250096289,3.05472,3273.7,3273.2,0.55]
[1738250097769,3.05484,3273.5,3273.2,0.55]
[1738250098377,3.665796,3273.5,3273.2,0.55]
[1738250098878,3.665796,3273.5,3273.0,0.55]
[1738250099432,3.05495,3273.4,3272.8,0.55]
[1738250099629,3.05525,3273.1,3272.8,0.55]
[1738250099833,3.0,3273.3,3272.4,0.8244]
[1738250100034,3.05537,3273.0,3272.4,0.8244]
[1738250100451,0.990294,3273.2,3272.4,0.8244]
[1738250100452,3.0552,3273.1,3272.4,0.8244]
[1738250100646,0.7931,3273.4,3272.4,0.8244]
[1738250100851,3.0554,3272.9,3272.5,0.55]
[1738250101048,3.05563,3272.7,3272.4,0.8244]
[1738250101295,3.05536,3273.0,3272.4,0.8244]
[1738250101508,0.305536,3273.0,3272.5,0.55]
[1738250101804,3.05559,3272.7,3272.4,0.8244]
[1738250101977,3.056,3272.3,3271.6,0.752]
[1738250102148,3.05614,3272.1,3271.6,0.752]
[1738250102348,3.05605,3272.2,3271.6,3.80859]
[1738250102545,3.056,3272.3,3271.7,3.05648]
[1738250102775,3.667179,3272.3,3271.6,3.05659]
[1738250102995,3.05615,3272.1,3271.4,3.05672]
[1738250103295,3.667179,3272.3,3271.2,0.7774]
[1738250103296,3.05663,3271.6,3271.2,0.7774]
[1738250103653,3.05642,3271.8,3271.2,0.7774]
[1738250105973,3.05609,3272.2,3271.7,0.55]
[1738250106174,0.611197,3272.2,3271.4,0.7761]
[1738250106380,0.231,3272.6,3270.8,3.05731]
[1738250106381,3.05677,3271.5,3270.8,3.05731]
[1738250106719,3.0563,3272.0,3271.4,3.05677]
[1738250107019,3.28689,3272.4,3271.7,0.55]
[1738250107223,3.8473,3272.8,3272.1,0.55]
[1738250107523,3.0556,3272.7,3272.2,0.7553]
[1738250107728,3.4152836,3272.8,3272.3,0.55]
[1738250107937,3.05569,3272.6,3272.3,0.55]
[1738250108232,3.05569,3272.6,3271.8,3.86848]
[1738250108233,0.4152836,3272.8,3272.0,3.05622]
[1738250108433,0.0075,3273.0,3271.8,0.8121]
[1738250108633,0.015,3272.8,3271.4,0.796]
[1738250108786,0.0075,3272.6,3271.4,0.796]
[1738250109296,0.0075,3272.6,3271.5,0.55]
[1738250109899,0.0075,3272.6,3271.2,0.55]
[1738250110096,0.015,3272.6,3271.1,3.88351]
[1738250110311,0.231,3273.1,3271.1,3.88351]
[1738250110312,0.0075,3272.4,3271.1,3.88351]
[1738250110531,0.7539,3272.5,3271.4,3.05677]
[1738250110764,0.7539,3272.5,3271.6,0.55]
[1738250110892,0.7539,3272.5,3271.8,3.60633]
[1738250111215,0.7539,3272.5,3272.0,0.55]
[1738250111565,0.7539,3272.5,3271.8,0.55]
[1738250111689,3.80973,3272.5,3271.8,3.05634]
[1738250111885,3.2866,3272.7,3271.9,0.55]
[1738250112204,3.2866,3272.7,3272.1,0.55]
[1738250112421,3.05602,3272.3,3272.1,0.55]
[1738250112739,3.05638,3271.9,3271.4,0.8037]
[1738250112941,6.1128,3271.9,3271.4,0.8037]
[1738250113143,3.05642,3271.8,3271.4,0.8037]
[1738250113434,0.61128,3271.9,3271.4,0.8037]
[1738250113599,3.05606,3272.2,3271.5,0.55]
[1738250113802,3.05606,3272.2,3271.7,0.55]
[1738250114119,3.8168,3272.6,3272.0,0.55]
[1738250114120,3.87254,3272.6,3272.0,0.55]
[1738250114429,3.87254,3272.6,3271.4,0.8037]
[1738250114430,3.0,3272.7,3272.2,0.55]
[1738250114639,3.05587,3272.4,3272.2,0.55]
[1738250114835,0.605551,3272.7,3271.8,3.05637]
[1738250114989,3.05597,3272.3,3271.9,0.55]
[1738250115352,3.05597,3272.3,3271.6,3.88697]
[1738250115353,3.05566,3272.7,3272.1,3.60608]
[1738250115520,3.05566,3272.7,3271.9,3.6063]
[1738250115743,3.05585,3272.5,3271.9,0.55]
[1738250115885,3.05588,3272.4,3271.9,0.55]
[1738250116090,3.80632,3273.0,3272.1,0.55]
[1738250116292,0.8085,3273.4,3272.4,3.05578]
[1738250116492,0.8085,3273.4,3272.5,0.55]
[1738250116792,3.05522,3273.1,3272.7,0.55]
[1738250116988,3.05508,3273.3,3272.6,3.05563]
[1738250117185,3.05508,3273.3,3272.8,0.55]
[1738250117386,3.746924,3273.3,3272.8,0.55]
[1738250117591,3.746924,3273.3,3272.7,3.05556]
[1738250117836,3.05508,3273.3,3272.8,0.55]
[1738250118240,3.05508,3273.3,3272.7,3.05556]
[1738250118410,3.05533,3273.0,3272.3,3.0559]
[1738250118597,3.05518,3273.2,3272.6,0.55]
[1738250118943,3.05472,3273.7,3273.0,3.05525]
[1738250118944,3.05465,3273.7,3273.0,3.05525]
[1738250119235,3.0548,3273.6,3272.7,0.8239]
[1738250119444,3.05494,3273.4,3272.7,0.8239]
[1738250119589,0.610923,3273.7,3272.8,0.55]
[1738250119786,0.7772,3274.0,3272.8,0.55]
[1738250120141,3.05481,3273.6,3272.8,3.60545]
[1738250120544,0.7772,3274.0,3272.8,0.55]
[1738250120747,0.7772,3274.0,3272.4,0.62011141]
[1738250120748,3.05548,3272.8,3272.4,0.62011141]
[1738250121041,3.05541,3272.9,3272.3,3.82406]
[1738250121792,3.05555,3272.8,3272.4,0.55]
[1738250121990,3.05558,3272.7,3272.3,0.7682]
[1738250122238,3.05569,3272.6,3271.9,3.0563]
[1738250122396,3.05569,3272.6,3272.0,3.60622]
[1738250122598,3.05558,3272.7,3272.2,0.55]
[1738250123010,3.05558,3272.7,3272.0,0.55]
[1738250123210,3.05541,3272.9,3272.2,0.55]
[1738250123448,3.05541,3272.9,3272.4,0.55]
[1738250123741,3.05546,3272.9,3272.3,3.60595]
[1738250123939,3.05546,3272.9,3272.3,0.55]
[1738250124137,3.05558,3272.7,3272.3,0.55]
[1738250124494,3.05558,3272.7,3272.1,0.55]
[1738250125294,3.05599,3272.3,3271.8,0.8322]
[1738250126404,3.05599,3272.3,3271.9,0.55]
[1738250126732,3.05605,3272.2,3271.9,0.55]
[1738250126894,3.05599,3272.3,3271.9,0.55]
[1738250127249,3.05578,3272.5,3271.9,3.60632]
[1738250127605,3.666918,3272.5,3271.9,3.60632]
[1738250127828,3.666918,3272.5,3271.9,3.60626]
[1738250128233,0.611138,3272.5,3271.9,3.60626]
[1738250128399,3.05586,3272.4,3271.9,3.60626]
[1738250128602,3.05619,3272.1,3271.9,0.55]
[1738250128839,3.05623,3272.0,3271.5,3.05662]
[1738250129160,3.05619,3272.1,3271.6,0.55]
[1738250129954,3.05641,3271.9,3271.4,0.7705]
[1738250130095,3.362051,3271.9,3271.5,0.55]
[1738250130301,3.05651,3271.7,3271.1,3.83863]
[1738250130549,3.05642,3271.8,3271.2,3.60691]
[1738250130850,3.05642,3271.8,3271.2,0.55]
[1738250131016,0.305641,3271.9,3270.8,0.7738]
[1738250131218,3.05685,3271.4,3270.8,0.7738]
[1738250131531,3.05685,3271.4,3270.9,0.55]
[1738250131856,3.05713,3271.1,3270.5,1.22749349]
[1738250132052,3.0569,3271.3,3270.5,4.28508349]
[1738250132251,3.0,3271.4,3270.5,1.22749349]
[1738250132556,0.7715,3272.1,3271.3,0.55]
[1738250132699,3.05672,3271.5,3271.3,0.55]